[Event "RUS-ch Men Blitz 2019"]
[Site "Sochi"]
[Date "2019.10.20"]
[Round "1.1"]
[White "Morozevich, Alexander"]
[Black "Nazaretyan, Tigran"]
[Result "1-0"]
[ECO "B24"]
[WhiteElo "2659"]
[BlackElo "2297"]
[Annotator "ChessBase"]
[PlyCount "79"]
[EventDate "2019.10.17"]
[EventType "swiss"]
[EventCountry "RUS"]
[SourceTitle "playchess.com"]
[Source "ChessBase"]
[SourceQuality "1"]
[TimeControl "180+2"]

1. e4 {[%emt 0:00:00]} c5 {[%emt 0:00:00]} 2. Nc3 {[%emt 0:00:01]} Nc6 {[%emt 0:00:01]} 3. Bb5 {[%emt 0:00:02]} Nd4 {[%emt 0:00:01]} 4. Nf3 {[%emt 0:00:01]} a6 {[%emt 0:00:05]} 5. Bd3 {[%emt 0:00:05]} Nc6 {[%emt 0:00:02]} 6. O-O {[%emt 0:00:02]} d6 {[%emt 0:00:01]} 7. h3 {[%emt 0:00:34]} g6 {[%emt 0:00:04]} 8. a4 {[%emt 0:00:24]} Bg7 {[%emt 0:00:06]} 9. Bc4 {[%emt 0:00:01]} Nf6 {[%emt 0:00:15]} 10. d3 {[%emt 0:00:01]} O-O {[%emt 0:00:05]} 11. Bg5 {[%emt 0:00:05]} h6 {[%emt 0:00:08]} 12. Be3 {[%emt 0:00:02]} e5 {[%emt 0:00:10]} 13. Nd2 {[%emt 0:00:12]} Be6 {[%emt 0:00:12]} 14. Bxe6 {[%emt 0:00:11]} fxe6 {[%emt 0:00:01]} 15. Ne2 {[%emt 0:00:01]} Nh5 {[%emt 0:00:09]} 16. c3 {[%emt 0:00:04]} Nf4 {[%emt 0:00:03]} 17. Bxf4 {[%emt 0:00:04]} exf4 {[%emt 0:00:02]} 18. Nf3 {[%emt 0:00:01]} Kh7 {[%emt 0:00:15]} 19. d4 {[%emt 0:00:03]} cxd4 {[%emt 0:00:08]} 20. cxd4 {[%emt 0:00:02]} e5 {[%emt 0:00:14]} 21. d5 {[%emt 0:00:01]} Nb4 {[%emt 0:00:06]} 22. a5 {[%emt 0:00:06]} b6 {[%emt 0:00:06]} 23. Qa4 {[%emt 0:00:13]} bxa5 {[%emt 0:00:05]} 24. Rfc1 {[%emt 0:00:06]} Nd3 {[%emt 0:00:02]} 25. Rc6 {[%emt 0:00:15]} Rb8 {[%emt 0:00:12]} 26. Qc4 {[%emt 0:00:08]} Nc5 {[%emt 0:00:07]} 27. Ra2 {[%emt 0:00:10]} Rb4 {[%emt 0:00:02]} 28. Qc2 {[%emt 0:00:01]} Nxe4 {[%emt 0:00:06]} 29. Nc3 {[%emt 0:00:09]} Nc5 {[%emt 0:00:12]} 30. Nd2 {[%emt 0:00:02]} f3 {[%emt 0:00:09]} 31. Nde4 {[%emt 0:00:06]} Nxe4 {[%emt 0:00:06]} 32. Nxe4 {[%emt 0:00:01]} fxg2 {[%emt 0:00:03]} 33. Ra3 {[%emt 0:00:04]} Qh4 {[%emt 0:00:02]} 34. Re3 {[%emt 0:00:04]} Rf4 {[%emt 0:00:08]} 35. Nxd6 {[%emt 0:00:05]} e4 {[%emt 0:00:10]} 36. Rc7 {[%emt 0:00:01]} Ra4 {[%emt 0:00:19]} 37. Kxg2 {[%emt 0:00:10]} Ra1 {[%emt 0:00:08]} 38. Nxe4 {[%emt 0:00:02]} Rf5 {[%emt 0:00:06]} 39. Qc3 {[%emt 0:00:09]} Rg5+ {[%emt 0:00:04]} 40. Ng3 {[%emt 0:00:13]} 1-0

[Event "RUS-ch Men Blitz 2019"]
[Site "Sochi"]
[Date "2019.10.17"]
[Round "1.2"]
[White "Ovod, Evgenija"]
[Black "Tsydypov, Zhamsaran"]
[Result "0-1"]
[ECO "B22"]
[WhiteElo "2347"]
[BlackElo "2553"]
[Annotator "ChessBase"]
[PlyCount "72"]
[EventDate "2019.10.17"]
[EventType "swiss"]
[EventCountry "RUS"]
[SourceTitle "playchess.com"]
[Source "ChessBase"]
[SourceQuality "1"]
[TimeControl "180+2"]

1. e4 {[%emt 0:00:00]} c5 {[%emt 0:00:00]} 2. c3 {[%emt 0:00:00]} Nf6 {[%emt 0:00:05]} 3. e5 {[%emt 0:00:01]} Nd5 {[%emt 0:00:01]} 4. Nf3 {[%emt 0:00:01]} e6 {[%emt 0:00:03]} 5. Bc4 {[%emt 0:00:03]} Nb6 {[%emt 0:00:03]} 6. Bb3 {[%emt 0:00:01]} c4 {[%emt 0:00:01]} 7. Bc2 {[%emt 0:00:01]} Nc6 {[%emt 0:00:01]} 8. O-O {[%emt 0:00:04]} Qc7 {[%emt 0:00:02]} 9. Re1 {[%emt 0:00:08]} d6 {[%emt 0:00:03]} 10. exd6 {[%emt 0:00:05]} Bxd6 {[%emt 0:00:02]} 11. b3 {[%emt 0:00:09]} a6 {[%emt 0:00:15]} 12. bxc4 {[%emt 0:00:23]} Nxc4 {[%emt 0:00:01]} 13. d3 {[%emt 0:00:01]} N4e5 {[%emt 0:00:03]} 14. Nbd2 {[%emt 0:00:26]} O-O {[%emt 0:00:06]} 15. d4 {[%emt 0:00:06]} Nxf3+ {[%emt 0:00:03]} 16. Nxf3 {[%emt 0:00:01]} Ne7 {[%emt 0:00:13]} 17. Qd3 {[%emt 0:00:07]} Ng6 {[%emt 0:00:09]} 18. h4 {[%emt 0:00:26]} f5 {[%emt 0:00:01]} 19. h5 {[%emt 0:00:06]} Ne7 {[%emt 0:00:07]} 20. h6 {[%emt 0:00:06]} Nd5 {[%emt 0:00:06]} 21. hxg7 {[%emt 0:00:06]} Qxg7 {[%emt 0:00:02]} 22. Ne5 {[%emt 0:00:14]} b5 {[%emt 0:00:08]} 23. a4 {[%emt 0:00:06]} Bb7 {[%emt 0:00:02]} 24. f3 {[%emt 0:00:06]} Rac8 {[%emt 0:00:07]} 25. Bd2 {[%emt 0:00:05]} Kh8 {[%emt 0:00:02]} 26. axb5 {[%emt 0:00:04]} axb5 {[%emt 0:00:00]} 27. Ra7 Rc7 28. Qxb5 {[%emt 0:00:17]} Rg8 {[%emt 0:00:25]} 29. Re2 {[%emt 0:00:09]} Bxe5 {[%emt 0:00:17]} 30. dxe5 {[%emt 0:00:01]} Nxc3 {[%emt 0:00:59]} 31. Bxc3 {[%emt 0:00:01]} Bxf3 {[%emt 0:00:01]} 32. Rxc7 {[%emt 0:00:02]} Qxc7 {[%emt 0:00:01]} 33. Bd4 {[%emt 0:00:17]} Qg7 {[%emt 0:00:02]} 34. Qd3 {[%emt 0:00:10]} Bxg2 {[%emt 0:00:03]} 35. Kf2 {[%emt 0:00:02]} Be4 {[%emt 0:00:06]} 36. Qh3 {[%emt 0:00:03]} Qg1# {[%emt 0:00:02]} 0-1

[Event "RUS-ch Men Blitz 2019"]
[Site "Sochi"]
[Date "2019.10.20"]
[Round "1.2"]
[White "Zakaryan, David"]
[Black "Yuffa, Daniil"]
[Result "1/2-1/2"]
[ECO "E16"]
[WhiteElo "2338"]
[BlackElo "2577"]
[Annotator "ChessBase"]
[PlyCount "155"]
[EventDate "2019.10.17"]
[EventType "swiss"]
[EventCountry "RUS"]
[SourceTitle "playchess.com"]
[Source "ChessBase"]
[SourceQuality "1"]
[TimeControl "180+2"]

1. d4 {[%emt 0:00:00]} Nf6 {[%emt 0:00:00]} 2. Nf3 {[%emt 0:00:00]} e6 {[%emt 0:00:00]} 3. c4 {[%emt 0:00:01]} Bb4+ {[%emt 0:00:01]} 4. Bd2 {[%emt 0:00:04]} Qe7 {[%emt 0:00:01]} 5. g3 {[%emt 0:00:02]} Bxd2+ {[%emt 0:00:03]} 6. Qxd2 {[%emt 0:00:01]} Nc6 {[%emt 0:00:02]} 7. Nc3 {[%emt 0:00:02]} d5 {[%emt 0:00:01]} 8. cxd5 {[%emt 0:00:14]} exd5 {[%emt 0:00:01]} 9. Bg2 {[%emt 0:00:01]} O-O {[%emt 0:00:02]} 10. O-O {[%emt 0:00:02]} Bg4 {[%emt 0:00:01]} 11. Qf4 {[%emt 0:00:03]} Bxf3 {[%emt 0:00:05]} 12. Bxf3 {[%emt 0:00:02]} Rad8 {[%emt 0:00:04]} 13. Rac1 {[%emt 0:00:02]} Rfe8 {[%emt 0:00:23]} 14. a3 {[%emt 0:00:02]} Na5 {[%emt 0:00:14]} 15. b4 {[%emt 0:00:11]} Nc6 {[%emt 0:00:20]} 16. e3 {[%emt 0:00:05]} h6 {[%emt 0:00:16]} 17. h4 {[%emt 0:00:01]} Nb8 {[%emt 0:00:21]} 18. Na4 {[%emt 0:00:08]} c6 {[%emt 0:00:01]} 19. Nc5 {[%emt 0:00:05]} a6 {[%emt 0:00:18]} 20. a4 {[%emt 0:00:02]} b6 {[%emt 0:00:05]} 21. Nd3 {[%emt 0:00:01]} Ne4 {[%emt 0:00:14]} 22. Bxe4 {[%emt 0:00:10]} dxe4 {[%emt 0:00:03]} 23. Ne5 {[%emt 0:00:01]} Qe6 {[%emt 0:00:01]} 24. Rc2 {[%emt 0:00:31]} f6 {[%emt 0:00:04]} 25. Nc4 {[%emt 0:00:11]} b5 {[%emt 0:00:30]} 26. axb5 {[%emt 0:00:04]} axb5 {[%emt 0:00:01]} 27. Nd2 {[%emt 0:00:07]} Nd7 {[%emt 0:00:07]} 28. Rfc1 {[%emt 0:00:22]} Rc8 {[%emt 0:00:01]} 29. h5 {[%emt 0:00:01]} Nb6 {[%emt 0:00:02]} 30. g4 {[%emt 0:00:43]} Nd5 31. Qf5 Qxf5 {[%emt 0:00:07]} 32. gxf5 {[%emt 0:00:01]} Nxb4 {[%emt 0:00:01]} 33. Kg2 {[%emt 0:00:21]} Nxc2 {[%emt 0:00:02]} 34. Rxc2 {[%emt 0:00:01]} Kf7 {[%emt 0:00:08]} 35. Kg3 {[%emt 0:00:00]} c5 {[%emt 0:00:06]} 36. dxc5 {[%emt 0:00:11]} Re5 {[%emt 0:00:01]} 37. Kf4 {[%emt 0:00:05]} Rcxc5 {[%emt 0:00:05]} 38. Rb2 {[%emt 0:00:09]} Rxf5+ {[%emt 0:00:01]} 39. Kxe4 {[%emt 0:00:01]} Rfe5+ {[%emt 0:00:02]} 40. Kf3 {[%emt 0:00:01]} Rxh5 {[%emt 0:00:02]} 41. Ne4 {[%emt 0:00:01]} Rcd5 {[%emt 0:00:05]} 42. Ng3 {[%emt 0:00:02]} Rhe5 {[%emt 0:00:02]} 43. Ne2 {[%emt 0:00:03]} h5 {[%emt 0:00:03]} 44. Nf4 {[%emt 0:00:01]} Rd6 {[%emt 0:00:02]} 45. Rc2 {[%emt 0:00:02]} Rd7 {[%emt 0:00:04]} 46. Rc6 {[%emt 0:00:02]} Rb7 {[%emt 0:00:01]} 47. Nd3 {[%emt 0:00:01]} Ree7 {[%emt 0:00:04]} 48. Nb4 {[%emt 0:00:02]} Rec7 {[%emt 0:00:04]} 49. Rd6 {[%emt 0:00:03]} Rc4 {[%emt 0:00:01]} 50. Nc6 {[%emt 0:00:02]} Rc7 {[%emt 0:00:08]} 51. Nd4 {[%emt 0:00:03]} b4 {[%emt 0:00:02]} 52. Rb6 {[%emt 0:00:02]} h4 {[%emt 0:00:01]} 53. Nf5 {[%emt 0:00:01]} h3 {[%emt 0:00:03]} 54. Nd6+ {[%emt 0:00:02]} Kg6 {[%emt 0:00:01]} 55. Nxc4 {[%emt 0:00:01]} Rxc4 {[%emt 0:00:01]} 56. Kg3 {[%emt 0:00:01]} Rh4 {[%emt 0:00:04]} 57. Kh2 {[%emt 0:00:06]} Kf5 {[%emt 0:00:03]} 58. Rb5+ {[%emt 0:00:01]} Ke6 {[%emt 0:00:02]} 59. f4 {[%emt 0:00:03]} g5 {[%emt 0:00:03]} 60. Rxb4 {[%emt 0:00:01]} g4 {[%emt 0:00:01]} 61. e4 {[%emt 0:00:09]} Rh8 {[%emt 0:00:02]} 62. Rb6+ {[%emt 0:00:02]} Kf7 {[%emt 0:00:01]} 63. Rb1 {[%emt 0:00:01]} Rc8 {[%emt 0:00:01]} 64. Rg1 {[%emt 0:00:03]} Rg8 {[%emt 0:00:03]} 65. Kg3 {[%emt 0:00:00]} f5 {[%emt 0:00:02]} 66. exf5 {[%emt 0:00:04]} Kf6 {[%emt 0:00:01]} 67. Re1 {[%emt 0:00:01]} Kxf5 {[%emt 0:00:01]} 68. Re5+ {[%emt 0:00:00]} Kf6 {[%emt 0:00:01]} 69. Rh5 {[%emt 0:00:01]} Rg7 {[%emt 0:00:05]} 70. Rh4 {[%emt 0:00:03]} Kf5 {[%emt 0:00:01]} 71. Rh5+ {[%emt 0:00:01]} Ke4 {[%emt 0:00:02]} 72. Re5+ {[%emt 0:00:01]} Kd4 {[%emt 0:00:01]} 73. Re1 {[%emt 0:00:02]} Kd5 {[%emt 0:00:04]} 74. f5 {[%emt 0:00:00]} Kd6 {[%emt 0:00:02]} 75. f6 {[%emt 0:00:01]} Rf7 {[%emt 0:00:01]} 76. Kxg4 h2 {[%emt 0:00:01]} 77. Kg3 {[%emt 0:00:01]} Rxf6 {[%emt 0:00:02]} 78. Kxh2 {[%emt 0:00:01]} 1/2-1/2

[Event "RUS-ch Men Blitz 2019"]
[Site "Sochi"]
[Date "2019.10.20"]
[Round "1.3"]
[White "Khismatullin, Denis"]
[Black "Ivlev, Aleksey"]
[Result "0-1"]
[ECO "A28"]
[WhiteElo "2611"]
[BlackElo "2292"]
[Annotator "ChessBase"]
[PlyCount "138"]
[EventDate "2019.10.17"]
[EventType "swiss"]
[EventCountry "RUS"]
[SourceTitle "playchess.com"]
[Source "ChessBase"]
[SourceQuality "1"]
[TimeControl "180+2"]

1. c4 {[%emt 0:00:00]} Nf6 {[%emt 0:00:00]} 2. Nc3 {[%emt 0:00:00]} e5 {[%emt 0:00:00]} 3. Nf3 {[%emt 0:00:03]} Nc6 {[%emt 0:00:01]} 4. e3 {[%emt 0:00:03]} d6 {[%emt 0:00:20]} 5. d4 {[%emt 0:00:05]} Be7 {[%emt 0:00:03]} 6. d5 {[%emt 0:00:02]} Nb8 {[%emt 0:00:01]} 7. e4 {[%emt 0:00:01]} a5 {[%emt 0:00:04]} 8. Bd3 {[%emt 0:00:02]} Na6 {[%emt 0:00:01]} 9. O-O {[%emt 0:00:02]} Nc5 {[%emt 0:00:02]} 10. Bc2 {[%emt 0:00:01]} O-O {[%emt 0:00:03]} 11. Be3 {[%emt 0:00:02]} b6 {[%emt 0:00:08]} 12. b3 {[%emt 0:00:11]} Bg4 {[%emt 0:00:14]} 13. h3 {[%emt 0:00:12]} Bxf3 {[%emt 0:00:02]} 14. Qxf3 {[%emt 0:00:02]} Nfd7 {[%emt 0:00:02]} 15. a3 {[%emt 0:00:04]} Bg5 {[%emt 0:00:17]} 16. b4 {[%emt 0:00:04]} Na6 {[%emt 0:00:02]} 17. Rab1 {[%emt 0:00:07]} Bxe3 {[%emt 0:00:06]} 18. Qxe3 {[%emt 0:00:02]} Nab8 {[%emt 0:00:19]} 19. Ba4 {[%emt 0:00:08]} Nf6 {[%emt 0:00:18]} 20. Rfc1 {[%emt 0:00:34]} axb4 {[%emt 0:00:08]} 21. axb4 {[%emt 0:00:01]} Nbd7 {[%emt 0:00:02]} 22. Bc6 {[%emt 0:00:17]} Ra3 {[%emt 0:00:03]} 23. Ra1 {[%emt 0:00:01]} Rxa1 {[%emt 0:00:09]} 24. Rxa1 {[%emt 0:00:01]} Nb8 {[%emt 0:00:12]} 25. Bb5 {[%emt 0:00:34]} Nh5 {[%emt 0:00:04]} 26. g3 {[%emt 0:00:09]} Qc8 {[%emt 0:00:03]} 27. Kg2 {[%emt 0:00:07]} g6 {[%emt 0:00:23]} 28. c5 {[%emt 0:00:10]} bxc5 {[%emt 0:00:04]} 29. bxc5 {[%emt 0:00:01]} Ng7 {[%emt 0:00:04]} 30. c6 {[%emt 0:00:07]} f5 {[%emt 0:00:04]} 31. Ra8 {[%emt 0:00:15]} f4 {[%emt 0:00:03]} 32. Qd2 {[%emt 0:00:03]} Qd8 {[%emt 0:00:09]} 33. Be2 {[%emt 0:00:14]} Qg5 {[%emt 0:00:04]} 34. Bf3 {[%emt 0:00:11]} Nd7 {[%emt 0:00:01]} 35. Rxf8+ {[%emt 0:00:04]} Nxf8 {[%emt 0:00:01]} 36. Nb5 {[%emt 0:00:01]} Ne8 {[%emt 0:00:03]} 37. Qa5 {[%emt 0:00:02]} Qe7 {[%emt 0:00:01]} 38. Bg4 {[%emt 0:00:02]} fxg3 {[%emt 0:00:03]} 39. fxg3 {[%emt 0:00:01]} h5 {[%emt 0:00:02]} 40. Bf3 {[%emt 0:00:02]} h4 {[%emt 0:00:01]} 41. Qd2 {[%emt 0:00:03]} hxg3 {[%emt 0:00:02]} 42. Kxg3 {[%emt 0:00:00]} Kg7 {[%emt 0:00:01]} 43. h4 {[%emt 0:00:03]} Nh7 {[%emt 0:00:03]} 44. Qe3 {[%emt 0:00:05]} Nhf6 {[%emt 0:00:01]} 45. Qg5 {[%emt 0:00:01]} Qd8 {[%emt 0:00:05]} 46. Kg2 {[%emt 0:00:04]} Qb8 {[%emt 0:00:01]} 47. Nc3 {[%emt 0:00:02]} Qb2+ {[%emt 0:00:03]} 48. Ne2 {[%emt 0:00:00]} Kf7 {[%emt 0:00:04]} 49. h5 {[%emt 0:00:03]} gxh5 {[%emt 0:00:05]} 50. Bxh5+ {[%emt 0:00:02]} Kf8 {[%emt 0:00:06]} 51. Bf3 {[%emt 0:00:04]} Kf7 {[%emt 0:00:09]} 52. Kh3 {[%emt 0:00:02]} Qb1 {[%emt 0:00:01]} 53. Ng3 {[%emt 0:00:01]} Qg1 {[%emt 0:00:04]} 54. Bh5+ {[%emt 0:00:03]} Kf8 {[%emt 0:00:01]} 55. Qh6+ {[%emt 0:00:02]} Ke7 {[%emt 0:00:03]} 56. Nf5+ {[%emt 0:00:02]} Kd8 {[%emt 0:00:01]} 57. Bxe8 {[%emt 0:00:03]} Qh1+ {[%emt 0:00:04]} 58. Kg3 {[%emt 0:00:01]} Nxe4+ {[%emt 0:00:03]} 59. Kg4 {[%emt 0:00:01]} Qxh6 {[%emt 0:00:02]} 60. Nxh6 {[%emt 0:00:01]} Nf6+ {[%emt 0:00:02]} 61. Kf5 {[%emt 0:00:01]} Nxe8 {[%emt 0:00:01]} 62. Ke6 {[%emt 0:00:07]} Ng7+ {[%emt 0:00:02]} 63. Kf6 {[%emt 0:00:02]} Nh5+ {[%emt 0:00:00]} 64. Kf5 {[%emt 0:00:00]} Ng3+ {[%emt 0:00:02]} 65. Ke6 {[%emt 0:00:03]} Nh5 {[%emt 0:00:02]} 66. Nf7+ {[%emt 0:00:02]} Kc8 {[%emt 0:00:02]} 67. Ng5 {[%emt 0:00:02]} Nf4+ {[%emt 0:00:01]} 68. Kf5 {[%emt 0:00:02]} Nxd5 {[%emt 0:00:01]} 69. Ke6 {[%emt 0:00:05]} Nb4 {[%emt 0:00:01]} 0-1

[Event "RUS-ch Men Blitz 2019"]
[Site "Sochi"]
[Date "2019.10.20"]
[Round "1.4"]
[White "Tenikashvili, Georgij"]
[Black "Bocharov, Dmitry"]
[Result "0-1"]
[ECO "E12"]
[WhiteElo "2337"]
[BlackElo "2519"]
[Annotator "ChessBase"]
[PlyCount "64"]
[EventDate "2019.10.17"]
[EventType "swiss"]
[EventCountry "RUS"]
[SourceTitle "playchess.com"]
[Source "ChessBase"]
[SourceQuality "1"]
[TimeControl "180+2"]

1. d4 {[%emt 0:00:01]} Nf6 {[%emt 0:00:00]} 2. Nf3 {[%emt 0:00:02]} e6 {[%emt 0:00:01]} 3. c4 {[%emt 0:00:03]} b6 {[%emt 0:00:02]} 4. a3 {[%emt 0:00:02]} Ba6 {[%emt 0:00:03]} 5. Qc2 {[%emt 0:00:03]} Bb7 {[%emt 0:00:01]} 6. Nc3 {[%emt 0:00:02]} c5 {[%emt 0:00:02]} 7. dxc5 {[%emt 0:00:23]} bxc5 {[%emt 0:00:04]} 8. Bg5 {[%emt 0:00:05]} Be7 {[%emt 0:00:03]} 9. e3 {[%emt 0:00:02]} d6 {[%emt 0:00:06]} 10. Be2 {[%emt 0:00:06]} Nbd7 {[%emt 0:00:03]} 11. O-O {[%emt 0:00:03]} O-O {[%emt 0:00:02]} 12. Rfd1 {[%emt 0:00:02]} Qc7 {[%emt 0:00:06]} 13. h3 {[%emt 0:00:02]} a6 {[%emt 0:00:16]} 14. Bf4 {[%emt 0:00:36]} Rfd8 {[%emt 0:00:10]} 15. Rd2 {[%emt 0:00:04]} h6 {[%emt 0:00:15]} 16. Rad1 {[%emt 0:00:04]} Nb6 {[%emt 0:00:02]} 17. b3 {[%emt 0:00:14]} Rac8 {[%emt 0:00:05]} 18. Bh2 {[%emt 0:00:29]} Rd7 {[%emt 0:00:33]} 19. Ne1 {[%emt 0:00:04]} Qd8 {[%emt 0:00:05]} 20. Bf3 {[%emt 0:00:02]} d5 {[%emt 0:00:06]} 21. cxd5 {[%emt 0:00:05]} exd5 {[%emt 0:00:03]} 22. Nd3 {[%emt 0:00:31]} d4 {[%emt 0:00:06]} 23. Ne5 {[%emt 0:00:23]} Bxf3 {[%emt 0:00:07]} 24. Nxd7 {[%emt 0:00:07]} Bxd1 {[%emt 0:00:17]} 25. Nxf6+ {[%emt 0:00:06]} Bxf6 {[%emt 0:00:02]} 26. Qxd1 {[%emt 0:00:02]} dxc3 {[%emt 0:00:44]} 27. Rxd8+ {[%emt 0:00:01]} Rxd8 {[%emt 0:00:01]} 28. Qc1 {[%emt 0:00:03]} Rd2 {[%emt 0:00:01]} 29. e4 {[%emt 0:00:04]} Bd4 {[%emt 0:00:01]} 30. Bg3 {[%emt 0:00:01]} c4 {[%emt 0:00:06]} 31. bxc4 {[%emt 0:00:05]} Nxc4 {[%emt 0:00:01]} 32. Kf1 {[%emt 0:00:03]} c2 {[%emt 0:00:04]} 0-1

[Event "RUS-ch Men Blitz 2019"]
[Site "Sochi"]
[Date "2019.10.17"]
[Round "1.5"]
[White "Shimanov, Aleksandr"]
[Black "Tenikashvili, Georgij"]
[Result "1-0"]
[ECO "A06"]
[WhiteElo "2587"]
[BlackElo "2337"]
[Annotator "ChessBase"]
[PlyCount "56"]
[EventDate "2019.10.17"]
[EventType "swiss"]
[EventCountry "RUS"]
[SourceTitle "playchess.com"]
[Source "ChessBase"]
[SourceQuality "1"]
[TimeControl "180+2"]

1. g3 {[%emt 0:00:01]} d5 {[%emt 0:00:00]} 2. Nf3 {[%emt 0:00:03]} c6 {[%emt 0:00:05]} 3. Bg2 {[%emt 0:00:03]} Bg4 {[%emt 0:00:02]} 4. c4 {[%emt 0:00:08]} e6 {[%emt 0:00:12]} 5. cxd5 {[%emt 0:00:06]} exd5 {[%emt 0:00:04]} 6. Qb3 {[%emt 0:00:06]} Qb6 {[%emt 0:00:16]} 7. Qc2 {[%emt 0:00:01]} Nf6 {[%emt 0:00:10]} 8. O-O {[%emt 0:00:03]} Bd6 {[%emt 0:00:16]} 9. d3 {[%emt 0:00:03]} O-O {[%emt 0:00:03]} 10. Nc3 {[%emt 0:00:09]} Nbd7 {[%emt 0:00:02]} 11. e4 {[%emt 0:00:04]} Rfe8 {[%emt 0:00:06]} 12. Be3 {[%emt 0:00:09]} Qa6 {[%emt 0:00:25]} 13. Nd4 {[%emt 0:00:44]} dxe4 {[%emt 0:00:45]} 14. dxe4 {[%emt 0:00:01]} Rad8 {[%emt 0:00:04]} 15. h3 Be6 16. Nxe6 {[%emt 0:00:16]} Rxe6 {[%emt 0:00:05]} 17. Rad1 {[%emt 0:00:01]} Rde8 {[%emt 0:00:17]} 18. f4 {[%emt 0:00:14]} Bc5 {[%emt 0:00:01]} 19. Bxc5 {[%emt 0:00:05]} Nxc5 {[%emt 0:00:02]} 20. e5 {[%emt 0:00:01]} Nh5 {[%emt 0:00:05]} 21. Kh2 {[%emt 0:00:03]} g6 {[%emt 0:00:15]} 22. b4 {[%emt 0:00:02]} Qc4 {[%emt 0:00:15]} 23. bxc5 {[%emt 0:00:02]} f6 {[%emt 0:00:02]} 24. Qb3 {[%emt 0:00:06]} Qa6 {[%emt 0:00:09]} 25. Ne4 {[%emt 0:00:05]} Kg7 {[%emt 0:00:02]} 26. g4 {[%emt 0:00:06]} fxe5 {[%emt 0:00:06]} 27. gxh5 {[%emt 0:00:03]} exf4 {[%emt 0:00:02]} 28. Rxf4 {[%emt 0:00:03]} Qe2 {[%emt 0:00:05]} 1-0

[Event "RUS-ch Men Blitz 2019"]
[Site "Sochi"]
[Date "2019.10.20"]
[Round "1.6"]
[White "Savchenko, Boris"]
[Black "Suleymenov, Alisher"]
[Result "1/2-1/2"]
[ECO "C18"]
[WhiteElo "2581"]
[BlackElo "2452"]
[Annotator "ChessBase"]
[PlyCount "118"]
[EventDate "2019.10.17"]
[EventType "swiss"]
[EventCountry "RUS"]
[SourceTitle "playchess.com"]
[Source "ChessBase"]
[SourceQuality "1"]
[TimeControl "180+2"]

1. e4 {[%emt 0:00:00]} e6 {[%emt 0:00:00]} 2. d4 {[%emt 0:00:02]} d5 {[%emt 0:00:00]} 3. Nc3 {[%emt 0:00:01]} Bb4 {[%emt 0:00:01]} 4. e5 {[%emt 0:00:01]} Ne7 {[%emt 0:00:01]} 5. a3 {[%emt 0:00:01]} Bxc3+ {[%emt 0:00:01]} 6. bxc3 {[%emt 0:00:01]} c5 {[%emt 0:00:01]} 7. Qg4 {[%emt 0:00:02]} O-O {[%emt 0:00:02]} 8. Bd3 {[%emt 0:00:01]} f5 {[%emt 0:00:01]} 9. exf6 {[%emt 0:00:04]} Rxf6 {[%emt 0:00:01]} 10. Bg5 {[%emt 0:00:22]} Rf7 {[%emt 0:00:01]} 11. Qh5 {[%emt 0:00:01]} g6 {[%emt 0:00:01]} 12. Qd1 {[%emt 0:00:03]} Qa5 {[%emt 0:00:02]} 13. Bd2 {[%emt 0:00:05]} c4 {[%emt 0:00:37]} 14. Be2 {[%emt 0:00:02]} Nbc6 {[%emt 0:00:13]} 15. f4 {[%emt 0:00:20]} Bd7 {[%emt 0:01:09]} 16. Nf3 {[%emt 0:00:14]} Nf5 {[%emt 0:00:19]} 17. O-O {[%emt 0:00:06]} Raf8 {[%emt 0:00:01]} 18. Ne5 {[%emt 0:00:05]} Re7 {[%emt 0:00:22]} 19. a4 {[%emt 0:00:29]} Nd6 {[%emt 0:00:09]} 20. Bf3 {[%emt 0:00:05]} Be8 {[%emt 0:00:07]} 21. Qe1 {[%emt 0:00:10]} Nxe5 {[%emt 0:00:19]} 22. fxe5 {[%emt 0:00:02]} Nf5 {[%emt 0:00:01]} 23. Bc1 {[%emt 0:00:15]} Rff7 {[%emt 0:00:08]} 24. g4 {[%emt 0:00:14]} Ng7 {[%emt 0:00:01]} 25. Ba3 {[%emt 0:00:02]} Rd7 {[%emt 0:00:01]} 26. Bc5 {[%emt 0:00:14]} Qd8 {[%emt 0:00:03]} 27. a5 {[%emt 0:00:10]} Rf4 {[%emt 0:00:07]} 28. Bxa7 {[%emt 0:00:36]} Rdf7 {[%emt 0:00:01]} 29. Qg3 {[%emt 0:00:02]} Qg5 {[%emt 0:00:03]} 30. Bc5 {[%emt 0:00:01]} Nh5 {[%emt 0:00:04]} 31. gxh5 {[%emt 0:00:02]} Qxg3+ {[%emt 0:00:01]} 32. hxg3 Rxf3 33. Rxf3 {[%emt 0:00:07]} Rxf3 {[%emt 0:00:01]} 34. hxg6 {[%emt 0:00:03]} hxg6 {[%emt 0:00:02]} 35. Bb4 {[%emt 0:00:03]} Rxg3+ {[%emt 0:00:01]} 36. Kf2 {[%emt 0:00:00]} Rh3 {[%emt 0:00:01]} 37. a6 {[%emt 0:00:01]} bxa6 {[%emt 0:00:01]} 38. Rxa6 {[%emt 0:00:01]} Bf7 {[%emt 0:00:04]} 39. Ra8+ {[%emt 0:00:02]} Kh7 {[%emt 0:00:02]} 40. Be7 {[%emt 0:00:02]} g5 {[%emt 0:00:02]} 41. Bb4 {[%emt 0:00:03]} Kg6 {[%emt 0:00:01]} 42. Rf8 {[%emt 0:00:02]} Rh2+ {[%emt 0:00:01]} 43. Kg3 {[%emt 0:00:01]} Rxc2 {[%emt 0:00:02]} 44. Kg4 {[%emt 0:00:01]} Rg2+ {[%emt 0:00:01]} 45. Kf3 {[%emt 0:00:01]} Rh2 {[%emt 0:00:01]} 46. Kg3 {[%emt 0:00:01]} Rh1 {[%emt 0:00:04]} 47. Kg2 {[%emt 0:00:00]} Rh4 {[%emt 0:00:04]} 48. Kg3 {[%emt 0:00:01]} Re4 {[%emt 0:00:01]} 49. Kf3 {[%emt 0:00:02]} Re1 {[%emt 0:00:05]} 50. Kg3 {[%emt 0:00:01]} Re2 {[%emt 0:00:02]} 51. Kf3 {[%emt 0:00:01]} Rc2 {[%emt 0:00:02]} 52. Kg3 {[%emt 0:00:01]} Rd2 {[%emt 0:00:03]} 53. Kg4 {[%emt 0:00:03]} Rg2+ {[%emt 0:00:02]} 54. Kf3 {[%emt 0:00:01]} Rg1 {[%emt 0:00:01]} 55. Kf2 {[%emt 0:00:02]} Rg4 {[%emt 0:00:01]} 56. Kf3 {[%emt 0:00:00]} Rf4+ {[%emt 0:00:00]} 57. Kg3 {[%emt 0:00:01]} Re4 {[%emt 0:00:07]} 58. Kf3 {[%emt 0:00:02]} Rf4+ {[%emt 0:00:02]} 59. Kg3 {[%emt 0:00:00]} Re4 {[%emt 0:00:01]} 1/2-1/2